[Event "Titled Tuesday Blitz June 20 Early 2023"]
[White "Morefield, Jason"]
[Black "Aravindh, Chithambaram VR."]
[WhiteFideId "30920825"]
[BlackFideId "5072786"]
[WhiteElo "2171"]
[BlackElo "2596"]
[Result "0-1"]
[Round "9"]
[TimeControl "180+2"]
[Date "2023.06.20"]
[WhiteClock "0:00:06"]
[BlackClock "0:00:14"]
[Board "20"]

1. e4 {[%clk 0:03:00]}  e5 {[%clk 0:02:58]} 2. Nf3 {[%clk 0:03:00]}  Nf6 {[%clk 0:02:53]} 3. Nxe5 {[%clk 0:02:59]}  Nc6 {[%clk 0:02:53]} 4. Nxc6 {[%clk 0:02:58]}  dxc6 {[%clk 0:02:54]} 5. d3 {[%clk 0:02:53]}  Bc5 {[%clk 0:02:52]} 6. Be2 {[%clk 0:02:52]}  h5 {[%clk 0:02:42]} 7. Be3 {[%clk 0:02:32]}  Bxe3 {[%clk 0:02:40]} 8. fxe3 {[%clk 0:02:33]}  Ng4 {[%clk 0:02:38]} 9. Bxg4 {[%clk 0:02:29]}  hxg4 {[%clk 0:02:38]} 10. g3 {[%clk 0:02:22]}  Qd6 {[%clk 0:01:59]} 11. O-O {[%clk 0:01:58]}  Rh3 {[%clk 0:01:47]} 12. Rf4 {[%clk 0:01:49]}  Be6 {[%clk 0:01:44]} 13. Nd2 {[%clk 0:01:42]}  g5 {[%clk 0:01:43]} 14. Rf2 {[%clk 0:01:37]}  O-O-O {[%clk 0:01:41]} 15. Qe2 {[%clk 0:01:28]}  Rdh8 {[%clk 0:01:38]} 16. d4 {[%clk 0:01:18]}  Qxg3+ {[%clk 0:01:34]} 17. Rg2 {[%clk 0:01:14]}  Qxe3+ {[%clk 0:01:23]} 18. Qxe3 {[%clk 0:01:14]}  Rxe3 {[%clk 0:01:24]} 19. Rf1 {[%clk 0:00:58]}  Rd8 {[%clk 0:01:04]} 20. c3 {[%clk 0:00:52]}  a5 {[%clk 0:00:59]} 21. a3 {[%clk 0:00:48]}  b5 {[%clk 0:00:54]} 22. Rg3 {[%clk 0:00:39]}  Re2 {[%clk 0:00:52]} 23. Rg2 {[%clk 0:00:32]}  Rxg2+ {[%clk 0:00:48]} 24. Kxg2 {[%clk 0:00:33]}  Kd7 {[%clk 0:00:43]} 25. Kg3 {[%clk 0:00:29]}  Rh8 {[%clk 0:00:42]} 26. Rf2 {[%clk 0:00:26]}  Rh3+ {[%clk 0:00:39]} 27. Kg2 {[%clk 0:00:26]}  Re3 {[%clk 0:00:39]} 28. Rf1 {[%clk 0:00:20]}  Ke7 {[%clk 0:00:35]} 29. Kf2 {[%clk 0:00:18]}  Rh3 {[%clk 0:00:35]} 30. Kg2 {[%clk 0:00:18]}  Rd3 {[%clk 0:00:34]} 31. Rf2 {[%clk 0:00:17]}  b4 {[%clk 0:00:31]} 32. axb4 {[%clk 0:00:11]}  axb4 {[%clk 0:00:32]} 33. cxb4 {[%clk 0:00:04]}  Rxd4 {[%clk 0:00:31]} 34. Kf1 {[%clk 0:00:03]}  Rxb4 {[%clk 0:00:31]} 35. b3 {[%clk 0:00:01]}  Rb8 {[%clk 0:00:22]} 36. Ke2 {[%clk 0:00:02]}  f6 {[%clk 0:00:16]} 37. Kd3 {[%clk 0:00:02]}  c5 {[%clk 0:00:14]} 38. Kc3 {[%clk 0:00:02]}  Rh8 {[%clk 0:00:13]} 39. Rg2 {[%clk 0:00:02]}  Rh3+ {[%clk 0:00:13]} 40. Kc2 {[%clk 0:00:03]}  Kd6 {[%clk 0:00:14]} 41. Nb1 {[%clk 0:00:03]}  Bxb3+ {[%clk 0:00:13]} 42. Kd2 {[%clk 0:00:03]}  Be6 {[%clk 0:00:12]} 43. Nc3 {[%clk 0:00:04]}  Ke5 {[%clk 0:00:13]} 44. Rf2 {[%clk 0:00:03]}  Rf3 {[%clk 0:00:12]} 45. Rg2 {[%clk 0:00:04]}  Kd4 {[%clk 0:00:12]} 46. Ne2+ {[%clk 0:00:04]}  Kxe4 {[%clk 0:00:12]} 47. Ng3+ {[%clk 0:00:04]}  Ke5 {[%clk 0:00:12]} 48. Re2+ {[%clk 0:00:05]}  Kd5 {[%clk 0:00:13]} 49. Ne4 {[%clk 0:00:05]}  c4 {[%clk 0:00:12]} 50. Nc3+ {[%clk 0:00:05]}  Kd6 {[%clk 0:00:12]} 51. Nb5+ {[%clk 0:00:06]}  Kd7 {[%clk 0:00:13]} 52. Nd4 {[%clk 0:00:06]}  Rd3+ {[%clk 0:00:13]} 53. Kc2 {[%clk 0:00:06]}  Rxd4 {[%clk 0:00:14]} 0-1


[Site "https://www.chess.com"]

[Event "Titled Tuesday Blitz June 20 Early 2023"]
[White "Henriquez Villagra, Cristobal"]
[Black "angelgab3"]
[WhiteFideId "3409350"]
[WhiteElo "2542"]
[BlackElo "2552"]
[Result "1-0"]
[Round "9"]
[TimeControl "180+2"]
[Date "2023.06.20"]
[WhiteClock "0:00:16"]
[BlackClock "0:00:04"]
[Board "22"]

1. d4 {[%clk 0:03:00]}  Nf6 {[%clk 0:03:00]} 2. c3 {[%clk 0:02:58]}  d5 {[%clk 0:02:56]} 3. Nf3 {[%clk 0:02:58]}  c5 {[%clk 0:02:56]} 4. dxc5 {[%clk 0:02:57]}  a5 {[%clk 0:02:52]} 5. b4 {[%clk 0:02:42]}  Nc6 {[%clk 0:02:42]} 6. b5 {[%clk 0:02:31]}  Na7 {[%clk 0:02:36]} 7. e3 {[%clk 0:02:31]}  e6 {[%clk 0:02:34]} 8. Ba3 {[%clk 0:02:31]}  Bd7 {[%clk 0:02:27]} 9. b6 {[%clk 0:02:18]}  Nb5 {[%clk 0:02:23]} 10. Bxb5 {[%clk 0:02:06]}  Bxb5 {[%clk 0:02:24]} 11. Qb3 {[%clk 0:02:06]}  Ba6 {[%clk 0:02:12]} 12. Ne5 {[%clk 0:01:59]}  Nd7 {[%clk 0:02:07]} 13. Qa4 {[%clk 0:01:46]}  Rc8 {[%clk 0:01:44]} 14. Nxd7 {[%clk 0:01:16]}  Qxd7 {[%clk 0:01:45]} 15. Qxa5 {[%clk 0:01:16]}  Qc6 {[%clk 0:01:36]} 16. Nd2 {[%clk 0:00:47]}  Bxc5 {[%clk 0:01:36]} 17. Bxc5 {[%clk 0:00:45]}  Qxc5 {[%clk 0:01:37]} 18. Qxc5 {[%clk 0:00:46]}  Rxc5 {[%clk 0:01:38]} 19. Rc1 {[%clk 0:00:46]}  O-O {[%clk 0:01:38]} 20. Nb3 {[%clk 0:00:46]}  Rc6 {[%clk 0:01:36]} 21. Kd2 {[%clk 0:00:46]}  Rfc8 {[%clk 0:01:33]} 22. Nd4 {[%clk 0:00:44]}  Rxb6 {[%clk 0:01:33]} 23. Rb1 {[%clk 0:00:45]}  Rd6 {[%clk 0:01:18]} 24. f4 {[%clk 0:00:45]}  Rd7 {[%clk 0:01:18]} 25. Rb4 {[%clk 0:00:43]}  Rdc7 {[%clk 0:01:18]} 26. Rb3 {[%clk 0:00:41]}  Re7 {[%clk 0:01:04]} 27. Rhb1 {[%clk 0:00:40]}  h6 {[%clk 0:01:00]} 28. Ra3 {[%clk 0:00:38]}  Rc4 {[%clk 0:00:59]} 29. Rb6 {[%clk 0:00:37]}  g6 {[%clk 0:00:50]} 30. g3 {[%clk 0:00:35]}  Rc8 {[%clk 0:00:50]} 31. Nc2 {[%clk 0:00:35]}  Rec7 {[%clk 0:00:49]} 32. Nb4 {[%clk 0:00:32]}  Bc4 {[%clk 0:00:39]} 33. Ra7 {[%clk 0:00:32]}  Rb8 {[%clk 0:00:21]} 34. a4 {[%clk 0:00:32]}  Kg7 {[%clk 0:00:21]} 35. a5 {[%clk 0:00:32]}  h5 {[%clk 0:00:19]} 36. Nc2 {[%clk 0:00:16]}  Rc5 {[%clk 0:00:17]} 37. a6 {[%clk 0:00:15]}  Ra5 {[%clk 0:00:18]} 38. Raxb7 {[%clk 0:00:13]}  Ra8 {[%clk 0:00:17]} 39. Rc6 {[%clk 0:00:13]}  R5xa6 {[%clk 0:00:17]} 40. Rcc7 {[%clk 0:00:14]}  Rf8 {[%clk 0:00:16]} 41. e4 {[%clk 0:00:13]}  Ra2 {[%clk 0:00:16]} 42. e5 {[%clk 0:00:14]}  Raa8 {[%clk 0:00:15]} 43. h3 {[%clk 0:00:14]}  Rae8 {[%clk 0:00:15]} 44. g4 {[%clk 0:00:15]}  hxg4 {[%clk 0:00:16]} 45. hxg4 {[%clk 0:00:16]}  Kg8 {[%clk 0:00:17]} 46. g5 {[%clk 0:00:16]}  Bf1 {[%clk 0:00:18]} 47. Ne3 {[%clk 0:00:16]}  Bh3 {[%clk 0:00:19]} 48. Kd3 {[%clk 0:00:15]}  Bf5+ {[%clk 0:00:19]} 49. Kd4 {[%clk 0:00:15]}  Be4 {[%clk 0:00:19]} 50. c4 {[%clk 0:00:16]}  Bg2 {[%clk 0:00:19]} 51. c5 {[%clk 0:00:16]}  Ra8 {[%clk 0:00:18]} 52. Ra7 {[%clk 0:00:16]}  Rab8 {[%clk 0:00:18]} 53. Rcb7 {[%clk 0:00:17]}  Rxb7 {[%clk 0:00:19]} 54. Rxb7 {[%clk 0:00:18]}  Ra8 {[%clk 0:00:18]} 55. Nc2 {[%clk 0:00:18]}  Ra4+ {[%clk 0:00:19]} 56. Nb4 {[%clk 0:00:19]}  Bf1 {[%clk 0:00:14]} 57. c6 {[%clk 0:00:19]}  Ba6 {[%clk 0:00:15]} 58. Rb8+ {[%clk 0:00:18]}  Kg7 {[%clk 0:00:15]} 59. c7 {[%clk 0:00:18]}  Bc8 {[%clk 0:00:10]} 60. Kc5 {[%clk 0:00:18]}  Bd7 {[%clk 0:00:09]} 61. Rd8 {[%clk 0:00:18]}  Ra5+ {[%clk 0:00:04]} 62. Kd6 {[%clk 0:00:16]} 1-0


[Site "https://www.chess.com"]

[Event "Titled Tuesday Blitz June 20 Early 2023"]
[White "Narayanan.S.L"]
[Black "Petrosian, Karlen"]
[WhiteFideId "5058422"]
[BlackFideId "4176146"]
[WhiteElo "2563"]
[BlackElo "2345"]
[Result "1-0"]
[Round "9"]
[TimeControl "180+2"]
[Date "2023.06.20"]
[WhiteClock "0:01:09"]
[BlackClock "0:00:03"]
[Board "23"]

1. f4 {[%clk 0:02:59]}  g6 {[%clk 0:02:52]} 2. e4 {[%clk 0:02:57]}  Bg7 {[%clk 0:02:52]} 3. d4 {[%clk 0:02:57]}  d6 {[%clk 0:02:51]} 4. c4 {[%clk 0:02:57]}  Nf6 {[%clk 0:02:50]} 5. Nc3 {[%clk 0:02:57]}  O-O {[%clk 0:02:50]} 6. Nf3 {[%clk 0:02:57]}  c5 {[%clk 0:02:51]} 7. dxc5 {[%clk 0:02:56]}  Qa5 {[%clk 0:02:47]} 8. Bd3 {[%clk 0:02:57]}  Qxc5 {[%clk 0:02:47]} 9. Qe2 {[%clk 0:02:58]}  Nc6 {[%clk 0:02:42]} 10. Be3 {[%clk 0:02:58]}  Qa5 {[%clk 0:02:43]} 11. O-O {[%clk 0:02:57]}  Ng4 {[%clk 0:02:20]} 12. Bd2 {[%clk 0:02:57]}  Nd4 {[%clk 0:02:10]} 13. Nxd4 {[%clk 0:02:54]}  Bxd4+ {[%clk 0:02:11]} 14. Kh1 {[%clk 0:02:54]}  Qh5 {[%clk 0:02:10]} 15. h3 {[%clk 0:02:54]}  Nf6 {[%clk 0:02:06]} 16. Qxh5 {[%clk 0:02:50]}  Nxh5 {[%clk 0:02:07]} 17. Kh2 {[%clk 0:02:50]}  Be6 {[%clk 0:01:59]} 18. g4 {[%clk 0:02:48]}  Nf6 {[%clk 0:01:58]} 19. f5 {[%clk 0:02:34]}  Bd7 {[%clk 0:01:52]} 20. g5 {[%clk 0:02:28]}  Nh5 {[%clk 0:01:52]} 21. Nd5 {[%clk 0:02:28]}  e6 {[%clk 0:01:48]} 22. Ne7+ {[%clk 0:02:26]}  Kh8 {[%clk 0:01:45]} 23. Bc3 {[%clk 0:02:22]}  Bxc3 {[%clk 0:01:40]} 24. bxc3 {[%clk 0:02:23]}  e5 {[%clk 0:01:17]} 25. f6 {[%clk 0:02:13]}  Nf4 {[%clk 0:01:16]} 26. Rf3 {[%clk 0:02:12]}  h5 {[%clk 0:01:11]} 27. Rd1 {[%clk 0:02:06]}  Rfd8 {[%clk 0:01:07]} 28. Bf1 {[%clk 0:02:05]}  Be6 {[%clk 0:01:07]} 29. Kg3 {[%clk 0:01:55]}  Rd7 {[%clk 0:01:02]} 30. Rxf4 {[%clk 0:01:54]}  exf4+ {[%clk 0:01:02]} 31. Kxf4 {[%clk 0:01:55]}  Rad8 {[%clk 0:00:55]} 32. h4 {[%clk 0:01:53]}  Rc7 {[%clk 0:00:51]} 33. Rd4 {[%clk 0:01:52]}  Rc5 {[%clk 0:00:48]} 34. Ke3 {[%clk 0:01:53]}  Ra5 {[%clk 0:00:42]} 35. Rd2 {[%clk 0:01:53]}  Kh7 {[%clk 0:00:34]} 36. Be2 {[%clk 0:01:49]}  Rc5 {[%clk 0:00:32]} 37. Rd4 {[%clk 0:01:48]}  Ra5 {[%clk 0:00:32]} 38. Rd2 {[%clk 0:01:39]}  Rc5 {[%clk 0:00:32]} 39. Rb2 {[%clk 0:01:28]}  b6 {[%clk 0:00:31]} 40. Kd4 {[%clk 0:01:27]}  Rd7 {[%clk 0:00:29]} 41. Nd5 {[%clk 0:01:28]}  Bxd5 {[%clk 0:00:22]} 42. cxd5 {[%clk 0:01:28]}  Rd8 {[%clk 0:00:21]} 43. Bb5 {[%clk 0:01:27]}  Kg8 {[%clk 0:00:20]} 44. c4 {[%clk 0:01:24]}  Kf8 {[%clk 0:00:20]} 45. Re2 {[%clk 0:01:23]}  Ra8 {[%clk 0:00:18]} 46. Bc6 {[%clk 0:01:17]}  Rc8 {[%clk 0:00:17]} 47. e5 {[%clk 0:01:17]}  dxe5+ {[%clk 0:00:16]} 48. Rxe5 {[%clk 0:01:18]}  Rd8 {[%clk 0:00:12]} 49. Kc3 {[%clk 0:01:13]}  Ra5 {[%clk 0:00:08]} 50. a4 {[%clk 0:01:13]}  Rc5 {[%clk 0:00:08]} 51. Re7 {[%clk 0:01:12]}  a6 {[%clk 0:00:07]} 52. Rb7 {[%clk 0:01:07]}  b5 {[%clk 0:00:06]} 53. axb5 {[%clk 0:01:08]}  axb5 {[%clk 0:00:07]} 54. Rxb5 {[%clk 0:01:09]}  Rxb5 {[%clk 0:00:03]} 55. cxb5 {[%clk 0:01:09]} 1-0


[Site "https://www.chess.com"]

[Event "Titled Tuesday Blitz June 20 Early 2023"]
[White "Rahman, Masruri"]
[Black "Pap, Gyula"]
[WhiteFideId "7101163"]
[BlackFideId "725323"]
[WhiteElo "2256"]
[BlackElo "2519"]
[Result "0-1"]
[Round "9"]
[TimeControl "180+2"]
[Date "2023.06.20"]
[WhiteClock "0:00:00"]
[BlackClock "0:01:30"]
[Board "28"]

1. d4 {[%clk 0:03:00]}  d5 {[%clk 0:02:59]} 2. Bf4 {[%clk 0:03:00]}  c5 {[%clk 0:02:56]} 3. e3 {[%clk 0:02:58]}  Nf6 {[%clk 0:02:55]} 4. c3 {[%clk 0:02:55]}  Nc6 {[%clk 0:02:52]} 5. Nd2 {[%clk 0:02:56]}  Bf5 {[%clk 0:02:50]} 6. Qb3 {[%clk 0:02:52]}  Qc8 {[%clk 0:02:49]} 7. Ngf3 {[%clk 0:02:50]}  e6 {[%clk 0:02:49]} 8. Be2 {[%clk 0:02:46]}  h6 {[%clk 0:02:48]} 9. h3 {[%clk 0:02:45]}  c4 {[%clk 0:02:44]} 10. Qd1 {[%clk 0:02:44]}  b5 {[%clk 0:02:45]} 11. a3 {[%clk 0:02:42]}  Be7 {[%clk 0:02:44]} 12. O-O {[%clk 0:02:41]}  O-O {[%clk 0:02:45]} 13. Qc1 {[%clk 0:02:21]}  a5 {[%clk 0:02:43]} 14. Bd1 {[%clk 0:02:21]}  b4 {[%clk 0:02:44]} 15. Bc2 {[%clk 0:02:16]}  Bxc2 {[%clk 0:02:36]} 16. Qxc2 {[%clk 0:02:16]}  bxa3 {[%clk 0:02:37]} 17. bxa3 {[%clk 0:02:16]}  a4 {[%clk 0:02:38]} 18. Ne5 {[%clk 0:02:06]}  Na5 {[%clk 0:02:38]} 19. Kh1 {[%clk 0:01:45]}  Nb3 {[%clk 0:02:37]} 20. Ra2 {[%clk 0:01:45]}  Ne8 {[%clk 0:02:26]} 21. Ng4 {[%clk 0:01:33]}  Bd6 {[%clk 0:02:14]} 22. Be5 {[%clk 0:01:27]}  Qd7 {[%clk 0:02:11]} 23. Nf3 {[%clk 0:01:15]}  f6 {[%clk 0:02:09]} 24. Bxd6 {[%clk 0:01:11]}  Nxd6 {[%clk 0:02:09]} 25. Qg6 {[%clk 0:01:10]}  Kh8 {[%clk 0:02:07]} 26. Nh4 {[%clk 0:01:01]}  Qf7 {[%clk 0:01:52]} 27. Qc2 {[%clk 0:00:40]}  Kg8 {[%clk 0:01:50]} 28. Nf3 {[%clk 0:00:19]}  Ne4 {[%clk 0:01:47]} 29. Ng1 {[%clk 0:00:16]}  Rab8 {[%clk 0:01:39]} 30. Kh2 {[%clk 0:00:16]}  Rb6 {[%clk 0:01:38]} 31. f3 {[%clk 0:00:16]}  Qc7+ {[%clk 0:01:38]} 32. f4 {[%clk 0:00:16]}  Rfb8 {[%clk 0:01:36]} 33. Nf2 {[%clk 0:00:16]}  Nbd2 {[%clk 0:01:31]} 34. Nxe4 {[%clk 0:00:00]}  Nxf1+ {[%clk 0:01:30]} 0-1


[Site "https://www.chess.com"]

[Event "Titled Tuesday Blitz June 20 Early 2023"]
[White "Fus, Jakub"]
[Black "Grandelius, Nils"]
[WhiteFideId "1193023"]
[BlackFideId "1710400"]
[WhiteElo "2335"]
[BlackElo "2573"]
[Result "0-1"]
[Round "9"]
[TimeControl "180+2"]
[Date "2023.06.20"]
[WhiteClock "0:00:02"]
[BlackClock "0:00:05"]
[Board "29"]

1. d4 {[%clk 0:03:00]}  d5 {[%clk 0:03:00]} 2. c4 {[%clk 0:03:01]}  e6 {[%clk 0:03:00]} 3. Nf3 {[%clk 0:03:01]}  a6 {[%clk 0:03:01]} 4. cxd5 {[%clk 0:03:00]}  exd5 {[%clk 0:03:02]} 5. Nc3 {[%clk 0:03:00]}  h6 {[%clk 0:03:02]} 6. Bf4 {[%clk 0:03:00]}  Nf6 {[%clk 0:03:03]} 7. e3 {[%clk 0:02:59]}  Bd6 {[%clk 0:03:03]} 8. Be5 {[%clk 0:02:59]}  c6 {[%clk 0:03:03]} 9. Bd3 {[%clk 0:02:57]}  O-O {[%clk 0:03:04]} 10. h3 {[%clk 0:02:57]}  Re8 {[%clk 0:03:04]} 11. O-O {[%clk 0:02:56]}  Bxe5 {[%clk 0:03:04]} 12. Nxe5 {[%clk 0:02:56]}  c5 {[%clk 0:03:05]} 13. Rc1 {[%clk 0:02:48]}  cxd4 {[%clk 0:02:59]} 14. exd4 {[%clk 0:02:47]}  Bd7 {[%clk 0:02:59]} 15. Qb3 {[%clk 0:02:40]}  Nc6 {[%clk 0:02:53]} 16. Nxc6 {[%clk 0:02:38]}  Bxc6 {[%clk 0:02:52]} 17. Rfe1 {[%clk 0:02:37]}  Qd6 {[%clk 0:02:49]} 18. Qd1 {[%clk 0:01:46]}  Qf4 {[%clk 0:02:37]} 19. Ne2 {[%clk 0:01:41]}  Qh4 {[%clk 0:02:37]} 20. Qd2 {[%clk 0:01:39]}  Bb5 {[%clk 0:01:44]} 21. Qf4 {[%clk 0:01:09]}  Qxf4 {[%clk 0:01:25]} 22. Nxf4 {[%clk 0:01:10]}  Rxe1+ {[%clk 0:01:15]} 23. Rxe1 {[%clk 0:01:10]}  g5 {[%clk 0:01:03]} 24. Bxb5 {[%clk 0:01:08]}  axb5 {[%clk 0:00:59]} 25. Nd3 {[%clk 0:01:06]}  Rxa2 {[%clk 0:00:59]} 26. Re7 {[%clk 0:00:58]}  Ra4 {[%clk 0:00:58]} 27. Rxb7 {[%clk 0:00:58]}  Rxd4 {[%clk 0:00:57]} 28. Ne5 {[%clk 0:00:59]}  Ne4 {[%clk 0:00:31]} 29. f3 {[%clk 0:00:49]}  Nd6 {[%clk 0:00:23]} 30. Rb6 {[%clk 0:00:39]}  Nc4 {[%clk 0:00:17]} 31. Rb8+ {[%clk 0:00:30]}  Kg7 {[%clk 0:00:16]} 32. Nc6 {[%clk 0:00:27]}  Rd1+ {[%clk 0:00:14]} 33. Kh2 {[%clk 0:00:28]}  Nxb2 {[%clk 0:00:14]} 34. Rxb5 {[%clk 0:00:28]}  Nc4 {[%clk 0:00:12]} 35. Rb7 {[%clk 0:00:15]}  Kf6 {[%clk 0:00:09]} 36. Nd8 {[%clk 0:00:13]}  Ne5 {[%clk 0:00:08]} 37. Rb6+ {[%clk 0:00:10]}  Ke7 {[%clk 0:00:06]} 38. Nb7 {[%clk 0:00:06]}  d4 {[%clk 0:00:05]} 39. Nc5 {[%clk 0:00:06]}  d3 {[%clk 0:00:03]} 40. Ne4 {[%clk 0:00:01]}  f5 {[%clk 0:00:04]} 41. Nc5 {[%clk 0:00:01]}  d2 {[%clk 0:00:04]} 42. Rb2 {[%clk 0:00:01]}  Rh1+ {[%clk 0:00:03]} 43. Kxh1 {[%clk 0:00:02]}  d1=Q+ {[%clk 0:00:04]} 44. Kh2 {[%clk 0:00:02]}  Qd6 {[%clk 0:00:04]} 45. Nb7 {[%clk 0:00:02]}  Nxf3+ {[%clk 0:00:04]} 46. Kh1 {[%clk 0:00:02]}  Qh2# {[%clk 0:00:05]} 0-1


[Site "https://www.chess.com"]

[Event "Titled Tuesday Blitz June 20 Early 2023"]
[White "Ajay Karthikeyan"]
[Black "Mikhailovsky, Vladimir"]
[WhiteFideId "35011685"]
[BlackFideId "34105414"]
[WhiteElo "2321"]
[BlackElo "2244"]
[Result "0-1"]
[Round "9"]
[TimeControl "180+2"]
[Date "2023.06.20"]
[WhiteClock "0:00:06"]
[BlackClock "0:00:20"]
[Board "30"]

1. e4 {[%clk 0:03:00]}  c6 {[%clk 0:02:58]} 2. d4 {[%clk 0:02:58]}  d5 {[%clk 0:02:59]} 3. exd5 {[%clk 0:02:58]}  cxd5 {[%clk 0:03:00]} 4. Bd3 {[%clk 0:02:59]}  Nc6 {[%clk 0:03:00]} 5. c3 {[%clk 0:02:59]}  Nf6 {[%clk 0:02:57]} 6. Bf4 {[%clk 0:02:59]}  Bg4 {[%clk 0:02:48]} 7. Qb3 {[%clk 0:02:59]}  Qd7 {[%clk 0:02:47]} 8. Nd2 {[%clk 0:02:57]}  e6 {[%clk 0:02:47]} 9. Ngf3 {[%clk 0:02:58]}  Bd6 {[%clk 0:02:42]} 10. Bxd6 {[%clk 0:02:55]}  Qxd6 {[%clk 0:02:43]} 11. O-O {[%clk 0:02:54]}  O-O {[%clk 0:02:43]} 12. Rae1 {[%clk 0:02:53]}  Ne7 {[%clk 0:02:43]} 13. Ne5 {[%clk 0:02:50]}  Bf5 {[%clk 0:02:43]} 14. Qc2 {[%clk 0:02:50]}  b5 {[%clk 0:02:36]} 15. Nb3 {[%clk 0:02:42]}  b4 {[%clk 0:02:24]} 16. Nc5 {[%clk 0:02:42]}  a5 {[%clk 0:02:17]} 17. Bxf5 {[%clk 0:02:20]}  Nxf5 {[%clk 0:02:16]} 18. g4 {[%clk 0:02:20]}  Ne7 {[%clk 0:02:02]} 19. g5 {[%clk 0:02:18]}  Nh5 {[%clk 0:01:59]} 20. Re3 {[%clk 0:02:13]}  Nf4 {[%clk 0:01:46]} 21. h4 {[%clk 0:01:55]}  f6 {[%clk 0:01:30]} 22. Ned7 {[%clk 0:01:47]}  Rf7 {[%clk 0:01:26]} 23. gxf6 {[%clk 0:01:38]}  gxf6 {[%clk 0:01:21]} 24. Kh1 {[%clk 0:01:38]}  Kh8 {[%clk 0:01:18]} 25. Rg1 {[%clk 0:01:17]}  Nf5 {[%clk 0:01:05]} 26. Rxe6 {[%clk 0:00:52]}  Nxe6 {[%clk 0:01:01]} 27. Qxf5 {[%clk 0:00:52]}  Nxc5 {[%clk 0:00:57]} 28. Nxc5 {[%clk 0:00:53]}  bxc3 {[%clk 0:00:53]} 29. bxc3 {[%clk 0:00:51]}  Rg8 {[%clk 0:00:38]} 30. Rxg8+ {[%clk 0:00:50]}  Kxg8 {[%clk 0:00:39]} 31. Qg4+ {[%clk 0:00:37]}  Kh8 {[%clk 0:00:36]} 32. Qc8+ {[%clk 0:00:27]}  Rf8 {[%clk 0:00:33]} 33. Qf5 {[%clk 0:00:28]}  Qe7 {[%clk 0:00:31]} 34. Qxd5 {[%clk 0:00:23]}  Qe1+ {[%clk 0:00:29]} 35. Kh2 {[%clk 0:00:13]}  Qxf2+ {[%clk 0:00:28]} 36. Qg2 {[%clk 0:00:14]}  Qxh4+ {[%clk 0:00:26]} 37. Qh3 {[%clk 0:00:14]}  Qf2+ {[%clk 0:00:22]} 38. Qg2 {[%clk 0:00:14]}  Qf4+ {[%clk 0:00:21]} 39. Qg3 {[%clk 0:00:14]}  Qd2+ {[%clk 0:00:20]} 40. Kh3 {[%clk 0:00:08]}  Rg8 {[%clk 0:00:20]} 41. Qf3 {[%clk 0:00:06]}  Qh6+ {[%clk 0:00:19]} 42. Qh5 {[%clk 0:00:06]}  Qxh5# {[%clk 0:00:20]} 0-1


[Site "https://www.chess.com"]

[Event "Titled Tuesday Blitz June 20 Early 2023"]
[White "Postny, Evgeny"]
[Black "Sethuraman, S.P."]
[WhiteFideId "2804344"]
[BlackFideId "5021596"]
[WhiteElo "2504"]
[BlackElo "2543"]
[Result "1-0"]
[Round "9"]
[TimeControl "180+2"]
[Date "2023.06.20"]
[WhiteClock "0:00:09"]
[BlackClock "0:00:13"]
[Board "31"]

1. e4 {[%clk 0:03:00]}  c5 {[%clk 0:02:59]} 2. Nf3 {[%clk 0:03:00]}  Nc6 {[%clk 0:02:59]} 3. d4 {[%clk 0:03:01]}  cxd4 {[%clk 0:02:59]} 4. Nxd4 {[%clk 0:03:02]}  Nf6 {[%clk 0:03:00]} 5. Nc3 {[%clk 0:03:02]}  d6 {[%clk 0:03:00]} 6. Be2 {[%clk 0:03:02]}  g6 {[%clk 0:02:59]} 7. O-O {[%clk 0:03:02]}  Bg7 {[%clk 0:03:00]} 8. Nb3 {[%clk 0:03:01]}  O-O {[%clk 0:02:59]} 9. Re1 {[%clk 0:03:02]}  Be6 {[%clk 0:02:56]} 10. Bf1 {[%clk 0:03:02]}  Rc8 {[%clk 0:02:55]} 11. h3 {[%clk 0:02:57]}  a6 {[%clk 0:02:49]} 12. a3 {[%clk 0:02:53]}  Na5 {[%clk 0:02:40]} 13. Nd4 {[%clk 0:02:48]}  Bc4 {[%clk 0:02:38]} 14. Bd3 {[%clk 0:02:36]}  Nd7 {[%clk 0:02:29]} 15. Be3 {[%clk 0:02:30]}  Ne5 {[%clk 0:02:25]} 16. f4 {[%clk 0:02:19]}  Nec6 {[%clk 0:02:18]} 17. Nf3 {[%clk 0:02:13]}  b5 {[%clk 0:02:13]} 18. Qe2 {[%clk 0:02:04]}  Bxd3 {[%clk 0:02:05]} 19. cxd3 {[%clk 0:02:04]}  Nb3 {[%clk 0:02:05]} 20. Rad1 {[%clk 0:02:04]}  Ncd4 {[%clk 0:01:55]} 21. Nxd4 {[%clk 0:01:55]}  Bxd4 {[%clk 0:01:51]} 22. Bxd4 {[%clk 0:01:54]}  Nxd4 {[%clk 0:01:51]} 23. Qf2 {[%clk 0:01:55]}  Ne6 {[%clk 0:01:47]} 24. f5 {[%clk 0:01:53]}  Ng7 {[%clk 0:01:37]} 25. Rf1 {[%clk 0:01:34]}  e6 {[%clk 0:01:32]} 26. f6 {[%clk 0:01:30]}  Ne8 {[%clk 0:01:32]} 27. e5 {[%clk 0:01:22]}  dxe5 {[%clk 0:01:30]} 28. d4 {[%clk 0:01:04]}  exd4 {[%clk 0:01:27]} 29. Rxd4 {[%clk 0:01:05]}  Qb6 {[%clk 0:01:27]} 30. Ne4 {[%clk 0:00:45]}  Rc2 {[%clk 0:01:22]} 31. Rd2 {[%clk 0:00:30]}  Qxf2+ {[%clk 0:01:20]} 32. Rfxf2 {[%clk 0:00:31]}  Rxd2 {[%clk 0:01:15]} 33. Rxd2 {[%clk 0:00:30]}  Nc7 {[%clk 0:01:15]} 34. Rd6 {[%clk 0:00:27]}  h6 {[%clk 0:01:07]} 35. Rc6 {[%clk 0:00:25]}  Nd5 {[%clk 0:01:05]} 36. Rxa6 {[%clk 0:00:25]}  Rc8 {[%clk 0:01:01]} 37. Ra7 {[%clk 0:00:23]}  g5 {[%clk 0:00:36]} 38. Nd6 {[%clk 0:00:19]}  Rc1+ {[%clk 0:00:36]} 39. Kh2 {[%clk 0:00:19]}  Nxf6 {[%clk 0:00:34]} 40. Nxf7 {[%clk 0:00:17]}  Kg7 {[%clk 0:00:21]} 41. Nxg5+ {[%clk 0:00:17]}  Kg6 {[%clk 0:00:20]} 42. Nxe6 {[%clk 0:00:17]}  Rc2 {[%clk 0:00:20]} 43. Rg7+ {[%clk 0:00:14]}  Kh5 {[%clk 0:00:17]} 44. Nf4+ {[%clk 0:00:10]}  Kh4 {[%clk 0:00:17]} 45. b4 {[%clk 0:00:09]}  Ne4 {[%clk 0:00:13]} 46. Rg4# {[%clk 0:00:09]} 1-0


[Site "https://www.chess.com"]